Workbook

Sheet Exercise 1
A1: ABC CORP.
A2: Current stock price, P0 | B2: 50
A3: Current dividend, D0 | B3: 3
A4: Dividend growth rate, g | B4: 0.05
A6: Cost of equity from Gordon model | B6: =B3*(1+B4)/B2+B4 -> 0.113 | C6: =getformula(B6) -> <-- =B3*(1+B4)/B2+B4

Sheet Exercise 2
A1: UNHEARDOF, INC.
A2: Current dividend, D0 | B2: 5
A3: Anticipated dividend growth rate, g | B3: 0.15
A4: Cost of equity, rE | B4: 0.25
A5: Gordon model stock price | B5: =B2*(1+B3)/(B4-B3) -> 57.5 | C5: =getformula(B5) -> <-- =B2*(1+B3)/(B4-B3)

Sheet Exercise 3
A1: DISMAL.COM
A2: Dividend, starting in 3 years | B2: 15
A3: Growth rate | B3: 0.2 | E3: Explanation: At the end of 2 years, the next dividend will be 15, and this dividend will grow at 20% per year.Thus the Gordon model applies, and the stock price at the end of 2 years will be 15/(0.35-0.20). Today's stock price is the price 2 years from now discounted at the cost of equity.
A4: Cost of equity | B4: 0.35
A5: Value of Dismal.com 3 years from today | B5: 15
A7: Value of Dismal.com stock 2 years from today | B7: =B5/(B4-B3) -> 100
A8: Today's stock price | B8: =B7/(1+B4)^2 -> 54.8696845 | C8: =getformula(B8) -> <-- =B7/(1+B4)^2

Sheet Exercise 4
A1: CHRYSLER CORPORATION (C)
A2: Year | B2: Year-end stock price | C2: Dividend per share | D2: Growth rate
A3: 1986 | C3: 0.4
A4: 1987 | C4: 0.5 | D4: =C4/C3-1 -> 0.25 | E4: =getformula(D4) -> <-- =C4/C3-1
A5: 1988 | C5: 0.5 | D5: =C5/C4-1 -> 0 | E5: =getformula(D5) -> <-- =C5/C4-1
A6: 1989 | C6: 0.6 | D6: =C6/C5-1 -> 0.2 | E6: =getformula(D6) -> <-- =C6/C5-1
A7: 1990 | C7: 0.6 | D7: 0 | E7: =getformula(D7) -> <-- =C7/C6-1
A8: 1991 | C8: 0.3 | D8: -0.5 | E8: =getformula(D8) -> <-- =C8/C7-1
A9: 1992 | C9: 0.3 | D9: 0
A10: 1993 | C10: 0.33 | D10: 0.1
A11: 1994 | C11: 0.45 | D11: 0.3636363636
A12: 1995 | C12: 1 | D12: 1.222222222
A13: 1996 | B13: 35 | C13: 1.4 | D13: 0.4
A15: Compound growth, 10 yr. | B15: =(C13/C3)^(1/10)-1 -> 0.1334615817 | C15: =getformula(B15) -> <-- =(C13/C3)^(1/10)-1
A16: Compound growth, 5 yr. | B16: =(C13/C8)^(1/5)-1 -> 0.3608221079 | C16: =getformula(B16) -> <-- =(C13/C8)^(1/5)-1
A18: Gordon model
A19: P0 | B19: =B13 -> 35 | C19: <-- Ending 1996 share price
A20: D0 | B20: =C13 -> 1.4 | C20: <-- 1996 dividend
A21: rE
A22: 10-yr. growth | B22: =B20*(1+B15)/B19+B15 -> 0.1788000449 | C22: =getformula(B22) -> <-- =B20*(1+B15)/B19+B15
A23: 5-yr. growth | B23: =B20*(1+B16)/B19+B16 -> 0.4152549922 | C23: =getformula(B23) -> <-- =B20*(1+B16)/B19+B16

Sheet Exercise 6
A1: ABC Corp ("supernormal" growth)
A2: Current dividend | B2: 3 | D2: Dividend valuation
A3: Growth rate g1, years 1-10 ("supernormal") | B3: 0.15 | D3: PV of years 1-10 | E3: =NPV(B5,B8:B17) -> 34.79455157 | F3: =getformula(E3) -> <-- =NPV(B5,B8:B17)
A4: Growth rate g2, years 11 - ¥ | B4: 0.1 | D4: PV of years 11 - ¥ | E4: =(B18/(B5-B4))/((1+B5)^10) -> 214.9226175 | F4: =getformula(E4) -> <-- =(B18/(B5-B4))/((1+B5)^10)
A5: Cost of equity | B5: 0.12 | D5: Share value | E5: =SUM(E3:E4) -> 249.717169 | F5: =getformula(E5) -> <-- =SUM(E3:E4)
A7: Year
A8: 1 | B8: =$B$2*(1+$B$3)^A8 -> 3.45 | C8: =getformula(B8) -> <-- =$B$2*(1+$B$3)^A8
A9: 2 | B9: =$B$2*(1+$B$3)^A9 -> 3.9675 | C9: =getformula(B9) -> <-- =$B$2*(1+$B$3)^A9
A10: 3 | B10: 4.562625 | C10: =getformula(B10) -> <-- =$B$2*(1+$B$3)^A10
A11: 4 | B11: 5.24701875 | C11: =getformula(B11) -> <-- =$B$2*(1+$B$3)^A11
A12: 5 | B12: 6.034071562
A13: 6 | B13: 6.939182297
A14: 7 | B14: 7.980059641
A15: 8 | B15: 9.177068588
A16: 9 | B16: 10.55362888 | C16: =getformula(B16) -> <-- =$B$2*(1+$B$3)^A16
A17: 10 | B17: =$B$2*(1+$B$3)^A17 -> 12.13667321 | C17: =getformula(B17) -> <-- =$B$2*(1+$B$3)^A17
A18: 11 | B18: =B17*(1+$B$4) -> 13.35034053 | C18: =getformula(B18) -> <-- =B17*(1+$B$4)
A19: 12 | B19: =B18*(1+$B$4) -> 14.68537458
A20: 13 | B20: 16.15391204
A21: 14 | B21: 17.76930324
A22: 15 | B22: 19.54623357
A23: 16 | B23: 21.50085692

Sheet Exercise 7
A1: bequity | B1: 1.5
A2: bdebt | B2: 0.4
A3: Risk-free, rf | B3: 0.06
A4: E(rm) | B4: 0.15
A5: Corporate tax rate TC | B5: 0.4
A7: Capital structure
A8: Percentage of equity | B8: 0.4
A9: Percentage of debt | B9: 0.6
A11: Cost of equity
A12: Classic CAPM | B12: =B3+B1*(B4-B3) -> 0.195 | C12: =getformula(B12) -> <-- =B3+B1*(B4-B3)
A14: Cost of debt
A15: Classic CAPM | B15: =B3+B2*(B4-B3) -> 0.096 | C15: =getformula(B15) -> <-- =B3+B2*(B4-B3)
A17: Weighted average cost of capital (WACC)
A18: Classic CAPM | B18: =B9*B15*(1-B5)+B8*B12 -> 0.11256 | C18: =getformula(B18) -> <-- =B9*B15*(1-B5)+B8*B12

Sheet Exercise 9 template
A1: CISCO (CSCO) AND S&P 500 PRICES July 2002 - June 2007
A2: Date | B2: S&P 500 | C2: CSCO
A3: 2002-07-03 | B3: 911.62 | C3: 13.19
A4: 2002-08-01 | B4: 916.07 | C4: 13.82
A5: 2002-09-03 | B5: 815.28 | C5: 10.48
A6: 2002-10-01 | B6: 885.76 | C6: 11.18
A7: 2002-11-01 | B7: 936.31 | C7: 14.92
A8: 2002-12-02 | B8: 879.82 | C8: 13.1
A9: 2003-01-02 | B9: 855.7 | C9: 13.37
A10: 2003-02-03 | B10: 841.15 | C10: 13.98
A11: 2003-03-03 | B11: 848.18 | C11: 12.98
A12: 2003-04-01 | B12: 916.92 | C12: 15
A13: 2003-05-01 | B13: 963.59 | C13: 16.41
A14: 2003-06-02 | B14: 974.5 | C14: 16.79
A15: 2003-07-01 | B15: 990.31 | C15: 19.49
A16: 2003-08-01 | B16: 1008.01 | C16: 19.14
A17: 2003-09-02 | B17: 995.97 | C17: 19.59
A18: 2003-10-01 | B18: 1050.71 | C18: 20.93
A19: 2003-11-03 | B19: 1058.2 | C19: 22.7
A20: 2003-12-01 | B20: 1111.92 | C20: 24.23
A21: 2004-01-02 | B21: 1131.13 | C21: 25.71
A22: 2004-02-02 | B22: 1144.94 | C22: 23.16
A23: 2004-03-01 | B23: 1126.21 | C23: 23.57
A24: 2004-04-01 | B24: 1107.3 | C24: 20.91
A25: 2004-05-03 | B25: 1120.68 | C25: 22.37
A26: 2004-06-01 | B26: 1140.84 | C26: 23.7
A27: 2004-07-01 | B27: 1101.72 | C27: 20.92
A28: 2004-08-02 | B28: 1104.24 | C28: 18.76
A29: 2004-09-01 | B29: 1114.58 | C29: 18.1
A30: 2004-10-01 | B30: 1130.2 | C30: 19.21
A31: 2004-11-01 | B31: 1173.82 | C31: 18.75
A32: 2004-12-01 | B32: 1211.92 | C32: 19.32
A33: 2005-01-03 | B33: 1181.27 | C33: 18.04
A34: 2005-02-01 | B34: 1203.6 | C34: 17.42
A35: 2005-03-01 | B35: 1180.59 | C35: 17.89
A36: 2005-04-01 | B36: 1156.85 | C36: 17.27
A37: 2005-05-02 | B37: 1191.5 | C37: 19.4
A38: 2005-06-01 | B38: 1191.33 | C38: 19.08
A39: 2005-07-01 | B39: 1234.18 | C39: 19.15
A40: 2005-08-01 | B40: 1220.33 | C40: 17.62
A41: 2005-09-01 | B41: 1228.81 | C41: 17.92
A42: 2005-10-03 | B42: 1207.01 | C42: 17.45
A43: 2005-11-01 | B43: 1249.48 | C43: 17.54
A44: 2005-12-01 | B44: 1248.29 | C44: 17.12
A45: 2006-01-03 | B45: 1280.08 | C45: 18.57
A46: 2006-02-01 | B46: 1280.66 | C46: 20.24
A47: 2006-03-01 | B47: 1294.87 | C47: 21.67
A48: 2006-04-03 | B48: 1310.61 | C48: 20.95
A49: 2006-05-01 | B49: 1270.09 | C49: 19.68
A50: 2006-06-01 | B50: 1270.2 | C50: 19.53
A51: 2006-07-03 | B51: 1276.66 | C51: 17.88
A52: 2006-08-01 | B52: 1303.82 | C52: 21.99
A53: 2006-09-01 | B53: 1335.85 | C53: 22.98
A54: 2006-10-02 | B54: 1377.94 | C54: 24.13
A55: 2006-11-01 | B55: 1400.63 | C55: 26.91
A56: 2006-12-01 | B56: 1418.3 | C56: 27.33
A57: 2007-01-03 | B57: 1438.24 | C57: 26.62
A58: 2007-02-01 | B58: 1406.82 | C58: 25.94
A59: 2007-03-01 | B59: 1420.86 | C59: 25.53
A60: 2007-04-02 | B60: 1482.37 | C60: 26.74
A61: 2007-05-01 | B61: 1530.62 | C61: 26.92
A62: 2007-06-01 | B62: 1502.97 | C62: 27.85
A63: 2007-07-02 | B63: 1519.43 | C63: 27.89

Sheet Exercise 9
A1: CISCO (CSCO) a and b July 2002 - June 2007
A2: Alpha | B2: =INTERCEPT(F13:F72,E13:E72) -> -0.003242097388 | C2: =getformula(B2) -> <-- =INTERCEPT(F13:F72,E13:E72)
A3: Beta
A4: Using Excel's slope function | B4: =SLOPE(F13:F72,E13:E72) -> 1.846536401 | C4: =getformula(B4) -> <-- =SLOPE(F13:F72,E13:E72)
A5: Using Cov/Var | B5: =_xlfn.COVARIANCE.S(F13:F72,E13:E72)/_xlfn.VAR.S(E13:E72) -> 1.846536401 | C5: =getformula(B5) -> <-- =COVARIANCE.S(F13:F72,E13:E72)/VAR.S(E13:E72)
A6: R-squared | B6: =RSQ(F13:F72,E13:E72) -> 0.4460497596 | C6: =getformula(B6) -> <-- =RSQ(F13:F72,E13:E72)
A7: t-statistic for alpha | B7: =tintercept(F13:F72,E13:E72) -> -0.371089929 | C7: =getformula(B7) -> <-- =tintercept(F13:F72,E13:E72)
A8: t-statistic for beta | B8: =tslope(F13:F72,E13:E72) -> 6.833926035 | C8: =getformula(B8) -> <-- =tslope(F13:F72,E13:E72)
E10: Returns
A11: Date | B11: S&P 500 | C11: CSCO | E11: S&P 500 | F11: CSCO
A12: 2002-07-03 | B12: 911.62 | C12: 13.19
A13: 2002-08-01 | B13: 916.07 | C13: 13.82 | E13: =LN(B13/B12) -> 0.00486954439 | F13: =LN(C13/C12) -> 0.04665785161 | G13: =getformula(F13) -> <-- =LN(C13/C12)
A14: 2002-09-03 | B14: 815.28 | C14: 10.48 | E14: =LN(B14/B13) -> -0.1165611684 | F14: =LN(C14/C13) -> -0.2766481394
A15: 2002-10-01 | B15: 885.76 | C15: 11.18 | E15: 0.08291442103 | F15: 0.06465778883
A16: 2002-11-01 | B16: 936.31 | C16: 14.92 | E16: 0.05550058468 | F16: 0.288576127
A17: 2002-12-02 | B17: 879.82 | C17: 13.1 | E17: -0.06222927713 | F17: -0.1300903646
A18: 2003-01-02 | B18: 855.7 | C18: 13.37 | E18: -0.02779749367 | F18: 0.02040116091
A19: 2003-02-03 | B19: 841.15 | C19: 13.98 | E19: -0.01714984426 | F19: 0.04461434569
A20: 2003-03-03 | B20: 848.18 | C20: 12.98 | E20: 0.008322874253 | F20: -0.07421802553
A21: 2003-04-01 | B21: 916.92 | C21: 15 | E21: 0.07792735003 | F21: 0.1446404898
A22: 2003-05-01 | B22: 963.59 | C22: 16.41 | E22: 0.04964566549 | F22: 0.089840704
A23: 2003-06-02 | B23: 974.5 | C23: 16.79 | E23: 0.01125862601 | F23: 0.02289256599
A24: 2003-07-01 | B24: 990.31 | C24: 19.49 | E24: 0.01609350648 | F24: 0.1491180424
A25: 2003-08-01 | B25: 1008.01 | C25: 19.14 | E25: 0.01771534379 | F25: -0.01812112749
A26: 2003-09-02 | B26: 995.97 | C26: 19.59 | E26: -0.01201623257 | F26: 0.02323884593
A27: 2003-10-01 | B27: 1050.71 | C27: 20.93 | E27: 0.05350426846 | F27: 0.0661643045
A28: 2003-11-03 | B28: 1058.2 | C28: 22.7 | E28: 0.007103225356 | F28: 0.08118138803
A29: 2003-12-01 | B29: 1111.92 | C29: 24.23 | E29: 0.04951889931 | F29: 0.06522661034
A30: 2004-01-02 | B30: 1131.13 | C30: 25.71 | E30: 0.01712888226 | F30: 0.05928848645
A31: 2004-02-02 | B31: 1144.94 | C31: 23.16 | E31: 0.01213510083 | F31: -0.1044533686
A32: 2004-03-01 | B32: 1126.21 | C32: 23.57 | E32: -0.01649422067 | F32: 0.01754806424
A33: 2004-04-01 | B33: 1107.3 | C33: 20.91 | E33: -0.01693339349 | F33: -0.1197472035
A34: 2004-05-03 | B34: 1120.68 | C34: 22.37 | E34: 0.01201102421 | F34: 0.06749326206
A35: 2004-06-01 | B35: 1140.84 | C35: 23.7 | E35: 0.01782918925 | F35: 0.05775427264
A36: 2004-07-01 | B36: 1101.72 | C36: 20.92 | E36: -0.03489223822 | F36: -0.1247694089
A37: 2004-08-02 | B37: 1104.24 | C37: 18.76 | E37: 0.002284720572 | F37: -0.1089786956
A38: 2004-09-01 | B38: 1114.58 | C38: 18.1 | E38: 0.009320336802 | F38: -0.03581500531
A39: 2004-10-01 | B39: 1130.2 | C39: 19.21 | E39: 0.01391695588 | F39: 0.05951903851
A40: 2004-11-01 | B40: 1173.82 | C40: 18.75 | E40: 0.03786877946 | F40: -0.02423722436
A41: 2004-12-01 | B41: 1211.92 | C41: 19.32 | E41: 0.03194249119 | F41: 0.02994707637
A42: 2005-01-03 | B42: 1181.27 | C42: 18.04 | E42: -0.02561574797 | F42: -0.06854931415
A43: 2005-02-01 | B43: 1203.6 | C43: 17.42 | E43: 0.01872693487 | F43: -0.03497254321
A44: 2005-03-01 | B44: 1180.59 | C44: 17.89 | E44: -0.01930275225 | F44: 0.0266229261
A45: 2005-04-01 | B45: 1156.85 | C45: 17.27 | E45: -0.02031351935 | F45: -0.03527100536
A46: 2005-05-02 | B46: 1191.5 | C46: 19.4 | E46: 0.02951222339 | F46: 0.1163021739
A47: 2005-06-01 | B47: 1191.33 | C47: 19.08 | E47: -0.0001426874769 | F47: -0.01663240005
A48: 2005-07-01 | B48: 1234.18 | C48: 19.15 | E48: 0.03533645186 | F48: 0.003662049607
A49: 2005-08-01 | B49: 1220.33 | C49: 17.62 | E49: -0.01128546797 | F49: -0.08326809512
A50: 2005-09-01 | B50: 1228.81 | C50: 17.92 | E50: 0.006924907427 | F50: 0.01688278704
A51: 2005-10-03 | B51: 1207.01 | C51: 17.45 | E51: -0.01789999431 | F51: -0.0265777589
A52: 2005-11-01 | B52: 1249.48 | C52: 17.54 | E52: 0.03458123768 | F52: 0.005144338296
A53: 2005-12-01 | B53: 1248.29 | C53: 17.12 | E53: -0.0009528500142 | F53: -0.02423661623
A54: 2006-01-03 | B54: 1280.08 | C54: 18.57 | E54: 0.02514796123 | F54: 0.08130000465
A55: 2006-02-01 | B55: 1280.66 | C55: 20.24 | E55: 0.0004529940642 | F55: 0.08611346905
A56: 2006-03-01 | B56: 1294.87 | C56: 21.67 | E56: 0.01103473397 | F56: 0.06826797113
A57: 2006-04-03 | B57: 1310.61 | C57: 20.95 | E57: 0.01208237368 | F57: -0.03379016918
A58: 2006-05-01 | B58: 1270.09 | C58: 19.68 | E58: -0.03140491359 | F58: -0.06253575474
A59: 2006-06-01 | B59: 1270.2 | C59: 19.53 | E59: 8.660428539e-05 | F59: -0.007651146736
A60: 2006-07-03 | B60: 1276.66 | C60: 17.88 | E60: 0.005072924192 | F60: -0.08826897514
A61: 2006-08-01 | B61: 1303.82 | C61: 21.99 | E61: 0.02105112459 | F61: 0.2069050348
A62: 2006-09-01 | B62: 1335.85 | C62: 22.98 | E62: 0.0242693762 | F62: 0.04403646785
A63: 2006-10-02 | B63: 1377.94 | C63: 24.13 | E63: 0.03102183692 | F63: 0.04883160722
A64: 2006-11-01 | B64: 1400.63 | C64: 26.91 | E64: 0.01633250512 | F64: 0.1090420851
A65: 2006-12-01 | B65: 1418.3 | C65: 27.33 | E65: 0.01253683592 | F65: 0.0154870352
A66: 2007-01-03 | B66: 1438.24 | C66: 26.62 | E66: 0.01396117252 | F66: -0.02632218697
A67: 2007-02-01 | B67: 1406.82 | C67: 25.94 | E67: -0.02208830566 | F67: -0.02587663408
A68: 2007-03-01 | B68: 1420.86 | C68: 25.53 | E68: 0.009930483915 | F68: -0.01593194763
A69: 2007-04-02 | B69: 1482.37 | C69: 26.74 | E69: 0.04237983624 | F69: 0.04630634042
A70: 2007-05-01 | B70: 1530.62 | C70: 26.92 | E70: 0.03203072375 | F70: 0.006708933103
A71: 2007-06-01 | B71: 1502.97 | C71: 27.85 | E71: -0.01822973159 | F71: 0.0339634616
A72: 2007-07-02 | B72: 1519.43 | C72: 27.89 | E72: 0.01089211404 | F72: 0.001435235266

Sheet Regression
A1: SUMMARY OUTPUT
A3: Regression Statistics
A4: Multiple R | B4: 0.6678695678
A5: R Square | B5: 0.4460497596
A6: Adjusted R Square | B6: 0.4364988934
A7: Standard Error | B7: 0.06528563252
A8: Observations | B8: 60
A10: ANOVA
B11: df | C11: SS | D11: MS | E11: F | F11: Significance F
A12: Regression | B12: 1 | C12: 0.1990562326 | D12: 0.1990562326 | E12: 46.70254505 | F12: 5.568455863e-09
A13: Residual | B13: 58 | C13: 0.2472084012 | D13: 0.004262213814
A14: Total | B14: 59 | C14: 0.4462646338
B16: Coefficients | C16: Standard Error | D16: t Stat | E16: P-value | F16: Lower 95% | G16: Upper 95% | H16: Lower 95.0% | I16: Upper 95.0%
A17: Intercept | B17: -0.003242097388 | C17: 0.008736689234 | D17: -0.371089929 | E17: 0.711922606 | F17: -0.02073048098 | G17: 0.01424628621 | H17: -0.02073048098 | I17: 0.01424628621
A18: X Variable 1 | B18: 1.846536401 | C18: 0.2702014027 | D18: 6.833926035 | E18: 5.568455863e-09 | F18: 1.305669529 | G18: 2.387403273 | H18: 1.305669529 | I18: 2.387403273
A22: RESIDUAL OUTPUT
A24: Observation | B24: Predicted Y | C24: Residuals
A25: 1 | B25: 0.005749693584 | C25: 0.04090815803
A26: 2 | B26: -0.2184765378 | C26: -0.05817160161
A27: 3 | B27: 0.1498623992 | C27: -0.08520461035
A28: 4 | B28: 0.09924175248 | C28: 0.1893343746
A29: 5 | B29: -0.1181507228 | C29: -0.01193964177
A30: 6 | B30: -0.0545711813 | C30: 0.07497234221
A31: 7 | B31: -0.03490990908 | C31: 0.07952425477
A32: 8 | B32: 0.01212639288 | C32: -0.08634441841
A33: 9 | B33: 0.1406535911 | C33: 0.003986898775
A34: 10 | B34: 0.08843043107 | C34: 0.001410272925
A35: 11 | B35: 0.01754736536 | C35: 0.005345200624
A36: 12 | B36: 0.02647514814 | C36: 0.1226428943
A37: 13 | B37: 0.02946992977 | C37: -0.04759105727
A38: 14 | B38: -0.02543050822 | C38: 0.04866935416
A39: 15 | B39: 0.09555548193 | C39: -0.02939117742
A40: 16 | B40: 0.009874266795 | C40: 0.07130712123
A41: 17 | B41: 0.0881963527 | C41: -0.02296974236
A42: 18 | B42: 0.02838700721 | C42: 0.03090147924
A43: 19 | B43: 0.01916580802 | C43: -0.1236191766
A44: 20 | B44: -0.03369927626 | C44: 0.0512473405
A45: 21 | B45: -0.03451022486 | C45: -0.08523697864
A46: 22 | B46: 0.01893669602 | C46: 0.04855656604
A47: 23 | B47: 0.02968014956 | C47: 0.02807412308
A48: 24 | B48: -0.06767188535 | C48: -0.05709752359
A49: 25 | B49: 0.0009767223133 | C49: -0.1099554179
A50: 26 | B50: 0.01396824378 | C50: -0.04978324909
A51: 27 | B51: 0.02245606823 | C51: 0.03706297028
A52: 28 | B52: 0.06668398234 | C52: -0.0909212067
A53: 29 | B53: 0.05574087533 | C53: -0.02579379896
A54: 30 | B54: -0.05054250844 | C54: -0.01800680571
A55: 31 | B55: 0.03133786953 | C55: -0.06631041274
A56: 32 | B56: -0.03888533206 | C56: 0.06550825816
A57: 33 | B57: -0.04075175029 | C57: 0.005480744927
A58: 34 | B58: 0.05125329736 | C58: 0.06504887655
A59: 35 | B59: -0.003505575008 | C59: -0.01312682504
A60: 36 | B60: 0.06200794725 | C60: -0.05834589765
A61: 37 | B61: -0.0240811248 | C61: -0.05918697032
A62: 38 | B62: 0.009544996247 | C62: 0.007337790791
A63: 39 | B63: -0.03629508846 | C63: 0.009717329562
A64: 40 | B64: 0.06061341676 | C64: -0.05546907847
A65: 41 | B65: -0.005001569623 | C65: -0.01923504661
A66: 42 | B66: 0.04319452843 | C66: 0.03810547622
A67: 43 | B67: -0.002405627359 | C67: 0.08851909641
A68: 44 | B68: 0.01713394056 | C68: 0.05113403057
A69: 45 | B69: 0.01906844541 | C69: -0.05285861459
A70: 46 | B70: -0.06123241348 | C70: -0.001303341259
A71: 47 | B71: -0.003082179422 | C71: -0.004568967313
A72: 48 | B72: 0.006125241791 | C72: -0.09439421693
A73: 49 | B73: 0.03562957044 | C73: 0.1712754644
A74: 50 | B74: 0.04157218918 | C74: 0.002464278675
A75: 51 | B75: 0.0540408537 | C75: -0.00520924648
A76: 52 | B76: 0.02691646784 | C76: 0.08212561727
A77: 53 | B77: 0.01990762648 | C77: -0.004420591281
A78: 54 | B78: 0.02253771588 | C78: -0.04885990285
A79: 55 | B79: -0.04402895783 | C79: 0.01815232375
A80: 56 | B80: 0.01509490264 | C80: -0.03102685027
A81: 57 | B81: 0.07501381288 | C81: -0.02870747246
A82: 58 | B82: 0.05590379995 | C82: -0.04919486685
A83: 59 | B83: -0.03690396034 | C83: 0.07086742194
A84: 60 | B84: 0.01687058766 | C84: -0.01543535239

Sheet Exercise 10 template
A1: NORMAL AMERICA, INC.
A2: Year | B2: Dec. 31 stock price | C2: Dec. 15 dividend per share | F2: S&P 500 return
A3: 1986 | B3: 33
A4: 1987 | B4: =30+11/16 -> 30.6875 | C4: 2.5 | E4: 1987 | F4: 0.047
A5: 1988 | B5: 35.38 | C5: 2.5 | E5: 1988 | F5: 0.162
A6: 1989 | B6: 42.25 | C6: 3 | E6: 1989 | F6: 0.314
A7: 1990 | B7: 34.375 | C7: 3 | E7: 1990 | F7: -0.033
A8: 1991 | B8: 36.25 | C8: 1.6 | E8: 1991 | F8: 0.302
A9: 1992 | B9: 32.25 | C9: 1.4 | E9: 1992 | F9: 0.074
A10: 1993 | B10: 43 | C10: 0.8 | E10: 1993 | F10: 0.099
A11: 1994 | B11: 42.125 | C11: 0.8 | E11: 1994 | F11: 0.012
A12: 1995 | B12: 52.875 | C12: 1.1 | E12: 1995 | F12: 0.374
A13: 1996 | B13: 55.75 | C13: 1.6 | E13: 1996 | F13: 0.229

Sheet Exercise 10
A1: NORMAL AMERICA, INC.
A2: Year | B2: Dec. 31 stock price | C2: Dec. 15 dividend per share | G2: S&P 500 return
A3: 1986 | B3: 33
A4: 1987 | B4: =30+11/16 -> 30.6875 | C4: 2.5 | D4: =LN((B4+C4)/B3) -> 0.005665737536 | E4: =getformula(D4) -> <-- =LN((B4+C4)/B3) | F4: 1987 | G4: 0.047
A5: 1988 | B5: 35.38 | C5: 2.5 | D5: =LN((B5+C5)/B4) -> 0.2105678628 | F5: 1988 | G5: 0.162
A6: 1989 | B6: 42.25 | C6: 3 | D6: 0.2460559814 | F6: 1989 | G6: 0.314
A7: 1990 | B7: 34.375 | C7: 3 | D7: -0.1226023221 | F7: 1990 | G7: -0.033
A8: 1991 | B8: 36.25 | C8: 1.6 | D8: 0.0963014239 | F8: 1991 | G8: 0.302
A9: 1992 | B9: 32.25 | C9: 1.4 | D9: -0.07442632521 | F9: 1992 | G9: 0.074
A10: 1993 | B10: 43 | C10: 0.8 | D10: 0.3061157741 | F10: 1993 | G10: 0.099
A11: 1994 | B11: 42.125 | C11: 0.8 | D11: -0.00174570891 | F11: 1994 | G11: 0.012
A12: 1995 | B12: 52.875 | C12: 1.1 | D12: 0.2478795877 | F12: 1995 | G12: 0.374
A13: 1996 | B13: 55.75 | C13: 1.6 | D13: 0.08124220621 | F13: 1996 | G13: 0.229
C15: Beta | D15: =SLOPE(D4:D13,G4:G13) -> 0.6967910166 | E15: =getformula(D15) -> <-- =SLOPE(D4:D13,G4:G13)
C16: Significant? | D16: =tslope(D4:D13,G4:G13) -> 2.487873018 | E16: =getformula(D16) -> <-- =tslope(D4:D13,G4:G13)
A18: Cost of equity
A19: Risk-free rate, rf | B19: 0.055
A20: Expected market return, E(rM) | B20: 0.13
A21: Corporate tax rate, TC | B21: 0.35
A23: rE, classic CAPM | B23: =B19+D15*(B20-B19) -> 0.1072593262 | C23: =getformula(B23) -> <-- =B19+D15*(B20-B19)
A26: Part c
A27: Cost of debt, rD | B27: 0.08
A28: Equity weight, E/(E+D) | B28: =1/3 -> 0.3333333333
A29: Debt weight, D/(E+D) | B29: =1-B28 -> 0.6666666667
A30: WACC
A31: Classic CAPM | B31: =B29*B27*(1-B21)+B28*B23 -> 0.07041977541 | C31: =getformula(B31) -> <-- =B29*B27*(1-B21)+B28*B23

Sheet Exercise 12 template
A1: RETURN DATA FOR VANGUARD INDEX 500 FUND December 2000 - June 2007
A2: Date | B2: Vanguard Index 500 | C2: Return
A3: 2000-12-01 | B3: 110.75
A4: 2001-01-02 | B4: 114.68 | C4: =LN(B4/B3) -> 0.03487023209 | D4: =getformula(C4) -> <-- =LN(B4/B3)
A5: 2001-02-01 | B5: 104.2 | C5: -0.0958335117 | D5: =getformula(C5) -> <-- =LN(B5/B4)
A6: 2001-03-01 | B6: 97.32 | C6: -0.0683076114 | D6: =getformula(C6) -> <-- =LN(B6/B5)
A7: 2001-04-02 | B7: 104.88 | C7: 0.07481232154 | D7: =getformula(C7) -> <-- =LN(B7/B6)
A8: 2001-05-01 | B8: 105.57 | C8: 0.006557400546
A9: 2001-06-01 | B9: 102.98 | C9: -0.02483944538
A10: 2001-07-02 | B10: 101.96 | C10: -0.00995421511
A11: 2001-08-01 | B11: 95.57 | C11: -0.06472161623
A12: 2001-09-04 | B12: 87.83 | C12: -0.08445583535
A13: 2001-10-01 | B13: 89.51 | C13: 0.01894722295
A14: 2001-11-01 | B14: 96.36 | C14: 0.07374082686
A15: 2001-12-03 | B15: 96.84 | C15: 0.004968954323
A16: 2002-01-02 | B16: 95.42 | C16: -0.01477193198
A17: 2002-02-01 | B17: 93.58 | C17: -0.01947151465
A18: 2002-03-01 | B18: 97.09 | C18: 0.03682169794
A19: 2002-04-01 | B19: 91.19 | C19: -0.06269314144
A20: 2002-05-01 | B20: 90.51 | C20: -0.007484900106
A21: 2002-06-03 | B21: 83.77 | C21: -0.07738539367
A22: 2002-07-01 | B22: 77.3 | C22: -0.08038099257
A23: 2002-08-01 | B23: 77.82 | C23: 0.006704511963
A24: 2002-09-03 | B24: 69.35 | C24: -0.1152323208
A25: 2002-10-01 | B25: 75.44 | C25: 0.08417149156
A26: 2002-11-01 | B26: 80.09 | C26: 0.05981336401
A27: 2002-12-02 | B27: 75.17 | C27: -0.06339878715
A28: 2003-01-02 | B28: 73.19 | C28: -0.02669341558
A29: 2003-02-03 | B29: 72.09 | C29: -0.0151434612
A30: 2003-03-03 | B30: 72.78 | C30: 0.009525853768
A31: 2003-04-01 | B31: 78.8 | C31: 0.07947180468
A32: 2003-05-01 | B32: 82.94 | C32: 0.05120445795
A33: 2003-06-02 | B33: 83.99 | C33: 0.01258028932
A34: 2003-07-01 | B34: 85.47 | C34: 0.01746769304
A35: 2003-08-01 | B35: 87.12 | C35: =LN(B35/B34) -> 0.01912104145
A36: 2003-09-02 | B36: 86.19 | C36: -0.01073231697
A37: 2003-10-01 | B37: 91.05 | C37: 0.05485464451
A38: 2003-11-03 | B38: 91.85 | C38: 0.008748005488
A39: 2003-12-01 | B39: 96.66 | C39: 0.05104285476
A40: 2004-01-02 | B40: 98.42 | C40: 0.01804436902
A41: 2004-02-02 | B41: 99.78 | C41: 0.013723727
A42: 2004-03-01 | B42: 98.27 | C42: -0.01524897006
A43: 2004-04-01 | B43: 96.73 | C43: -0.01579520018
A44: 2004-05-03 | B44: 98.05 | C44: 0.01355396045
A45: 2004-06-01 | B45: 99.95 | C45: 0.0191925083
A46: 2004-07-01 | B46: 96.64 | C46: -0.03367732676
A47: 2004-08-02 | B47: 97.03 | C47: 0.004027474851
A48: 2004-09-01 | B48: 98.07 | C48: 0.01066130037
A49: 2004-10-01 | B49: 99.57 | C49: 0.015179405
A50: 2004-11-01 | B50: 103.59 | C50: 0.03957988567
A51: 2004-12-01 | B51: 107.12 | C51: 0.03350890131
A52: 2005-01-03 | B52: 104.51 | C52: -0.02466694078
A53: 2005-02-01 | B53: 106.69 | C53: 0.0206446726
A54: 2005-03-01 | B54: 104.82 | C54: -0.01768283983
A55: 2005-04-01 | B55: 102.83 | C55: -0.01916745413
A56: 2005-05-02 | B56: 106.09 | C56: 0.03121065123
A57: 2005-06-01 | B57: 106.24 | C57: 0.001412895257
A58: 2005-07-01 | B58: 110.19 | C58: 0.03650546277
A59: 2005-08-01 | B59: 109.18 | C59: -0.009208252146
A60: 2005-09-01 | B60: 110.05 | C60: 0.007936911619
A61: 2005-10-03 | B61: 108.22 | C61: -0.01676861576
A62: 2005-11-01 | B62: 112.3 | C62: 0.03700766953
A63: 2005-12-01 | B63: 112.33 | C63: 0.0002671059091
A64: 2006-01-03 | B64: 115.31 | C64: 0.02618318613
A65: 2006-02-01 | B65: 115.63 | C65: 0.002771284358
A66: 2006-03-01 | B66: 117.06 | C66: 0.01229118572
A67: 2006-04-03 | B67: 118.63 | C67: =LN(B67/B66) -> 0.01332278181
A68: 2006-05-01 | B68: 115.21 | C68: -0.02925285562
A69: 2006-06-01 | B69: 115.37 | C69: 0.001387804889
A70: 2006-07-03 | B70: 116.07 | C70: 0.006049102441
A71: 2006-08-01 | B71: 118.82 | C71: 0.02341628555
A72: 2006-09-01 | B72: 121.88 | C72: 0.02542721119
A73: 2006-10-02 | B73: 125.84 | C73: 0.03197430463
A74: 2006-11-01 | B74: 128.23 | C74: 0.01881426772
A75: 2006-12-01 | B75: 130.02 | C75: 0.01386275831
A76: 2007-01-03 | B76: 131.98 | C76: 0.01496211118
A77: 2007-02-01 | B77: 129.39 | C77: -0.01981929663
A78: 2007-03-01 | B78: 130.84 | C78: 0.01114410334
A79: 2007-04-02 | B79: 136.62 | C79: 0.04322814663
A80: 2007-05-01 | B80: 141.38 | C80: 0.03424795144
A81: 2007-06-01 | B81: 138.43 | C81: -0.02108651804
A82: 2007-07-02 | B82: 140.44 | C82: 0.0144155686

Sheet Exercise 12
A1: RETURN DATA FOR VANGUARD INDEX 500 FUND November 2000 - June 2007
A2: Date | B2: Vanguard Index 500 | C2: Return
A3: 2000-12-01 | B3: 110.75 | F3: E(rM)?
A4: 2001-01-02 | B4: 114.68 | C4: =LN(B4/B3) -> 0.03487023209 | D4: =getformula(C4) -> <-- =LN(B4/B3) | F4: Using all the data | G4: =AVERAGE(C4:C82)*12 -> 0.03607670011 | H4: =getformula(G4) -> <-- =AVERAGE(C4:C82)*12
A5: 2001-02-01 | B5: 104.2 | C5: =LN(B5/B4) -> -0.0958335117 | D5: =getformula(C5) -> <-- =LN(B5/B4) | F5: Using last two years | G5: =12*AVERAGE(C59:C82) -> 0.1212871014 | H5: =getformula(G5) -> <-- =12*AVERAGE(C59:C82)
A6: 2001-03-01 | B6: 97.32 | C6: -0.0683076114 | D6: =getformula(C6) -> <-- =LN(B6/B5)
A7: 2001-04-02 | B7: 104.88 | C7: 0.07481232154 | D7: =getformula(C7) -> <-- =LN(B7/B6) | F7: Just for kicks: The standard deviation of the returns
A8: 2001-05-01 | B8: 105.57 | C8: 0.006557400546 | F8: Using all the data | G8: =_xlfn.STDEV.S(C4:C82)*SQRT(12) -> 0.1367306222 | H8: =getformula(G8) -> <-- =STDEV.S(C4:C82)*SQRT(12)
A9: 2001-06-01 | B9: 102.98 | C9: -0.02483944538 | F9: Using last two years | G9: =SQRT(12)*_xlfn.STDEV.S(C59:C82) -> 0.06644194868 | H9: =getformula(G9) -> <-- =SQRT(12)*STDEV.S(C59:C82)
A10: 2001-07-02 | B10: 101.96 | C10: -0.00995421511
A11: 2001-08-01 | B11: 95.57 | C11: -0.06472161623
A12: 2001-09-04 | B12: 87.83 | C12: -0.08445583535
A13: 2001-10-01 | B13: 89.51 | C13: 0.01894722295
A14: 2001-11-01 | B14: 96.36 | C14: 0.07374082686
A15: 2001-12-03 | B15: 96.84 | C15: 0.004968954323
A16: 2002-01-02 | B16: 95.42 | C16: -0.01477193198
A17: 2002-02-01 | B17: 93.58 | C17: -0.01947151465
A18: 2002-03-01 | B18: 97.09 | C18: 0.03682169794
A19: 2002-04-01 | B19: 91.19 | C19: -0.06269314144
A20: 2002-05-01 | B20: 90.51 | C20: -0.007484900106
A21: 2002-06-03 | B21: 83.77 | C21: -0.07738539367
A22: 2002-07-01 | B22: 77.3 | C22: -0.08038099257
A23: 2002-08-01 | B23: 77.82 | C23: 0.006704511963
A24: 2002-09-03 | B24: 69.35 | C24: -0.1152323208
A25: 2002-10-01 | B25: 75.44 | C25: 0.08417149156
A26: 2002-11-01 | B26: 80.09 | C26: 0.05981336401
A27: 2002-12-02 | B27: 75.17 | C27: -0.06339878715
A28: 2003-01-02 | B28: 73.19 | C28: -0.02669341558
A29: 2003-02-03 | B29: 72.09 | C29: -0.0151434612
A30: 2003-03-03 | B30: 72.78 | C30: 0.009525853768
A31: 2003-04-01 | B31: 78.8 | C31: 0.07947180468
A32: 2003-05-01 | B32: 82.94 | C32: 0.05120445795
A33: 2003-06-02 | B33: 83.99 | C33: 0.01258028932
A34: 2003-07-01 | B34: 85.47 | C34: 0.01746769304
A35: 2003-08-01 | B35: 87.12 | C35: 0.01912104145
A36: 2003-09-02 | B36: 86.19 | C36: -0.01073231697
A37: 2003-10-01 | B37: 91.05 | C37: 0.05485464451
A38: 2003-11-03 | B38: 91.85 | C38: 0.008748005488
A39: 2003-12-01 | B39: 96.66 | C39: 0.05104285476
A40: 2004-01-02 | B40: 98.42 | C40: 0.01804436902
A41: 2004-02-02 | B41: 99.78 | C41: 0.013723727
A42: 2004-03-01 | B42: 98.27 | C42: -0.01524897006
A43: 2004-04-01 | B43: 96.73 | C43: -0.01579520018
A44: 2004-05-03 | B44: 98.05 | C44: 0.01355396045
A45: 2004-06-01 | B45: 99.95 | C45: 0.0191925083
A46: 2004-07-01 | B46: 96.64 | C46: -0.03367732676
A47: 2004-08-02 | B47: 97.03 | C47: 0.004027474851
A48: 2004-09-01 | B48: 98.07 | C48: 0.01066130037
A49: 2004-10-01 | B49: 99.57 | C49: 0.015179405
A50: 2004-11-01 | B50: 103.59 | C50: 0.03957988567
A51: 2004-12-01 | B51: 107.12 | C51: 0.03350890131
A52: 2005-01-03 | B52: 104.51 | C52: -0.02466694078
A53: 2005-02-01 | B53: 106.69 | C53: 0.0206446726
A54: 2005-03-01 | B54: 104.82 | C54: -0.01768283983
A55: 2005-04-01 | B55: 102.83 | C55: -0.01916745413
A56: 2005-05-02 | B56: 106.09 | C56: 0.03121065123
A57: 2005-06-01 | B57: 106.24 | C57: 0.001412895257
A58: 2005-07-01 | B58: 110.19 | C58: 0.03650546277
A59: 2005-08-01 | B59: 109.18 | C59: -0.009208252146
A60: 2005-09-01 | B60: 110.05 | C60: 0.007936911619
A61: 2005-10-03 | B61: 108.22 | C61: -0.01676861576
A62: 2005-11-01 | B62: 112.3 | C62: 0.03700766953
A63: 2005-12-01 | B63: 112.33 | C63: 0.0002671059091
A64: 2006-01-03 | B64: 115.31 | C64: 0.02618318613
A65: 2006-02-01 | B65: 115.63 | C65: 0.002771284358
A66: 2006-03-01 | B66: 117.06 | C66: 0.01229118572
A67: 2006-04-03 | B67: 118.63 | C67: 0.01332278181
A68: 2006-05-01 | B68: 115.21 | C68: -0.02925285562
A69: 2006-06-01 | B69: 115.37 | C69: =LN(B69/B68) -> 0.001387804889
A70: 2006-07-03 | B70: 116.07 | C70: 0.006049102441
A71: 2006-08-01 | B71: 118.82 | C71: 0.02341628555
A72: 2006-09-01 | B72: 121.88 | C72: 0.02542721119
A73: 2006-10-02 | B73: 125.84 | C73: 0.03197430463
A74: 2006-11-01 | B74: 128.23 | C74: 0.01881426772
A75: 2006-12-01 | B75: 130.02 | C75: 0.01386275831
A76: 2007-01-03 | B76: 131.98 | C76: 0.01496211118
A77: 2007-02-01 | B77: 129.39 | C77: -0.01981929663
A78: 2007-03-01 | B78: 130.84 | C78: 0.01114410334
A79: 2007-04-02 | B79: 136.62 | C79: 0.04322814663
A80: 2007-05-01 | B80: 141.38 | C80: 0.03424795144
A81: 2007-06-01 | B81: 138.43 | C81: -0.02108651804
A82: 2007-07-02 | B82: 140.44 | C82: 0.0144155686

Sheet Exercise 14 template
A1: COMPUTING THE GORDON DIVIDEND MODEL rE FOR INTEL
A2: S0, current stock price | B2: 24.23
A3: Current dividend, Div0 | B3: =B52 -> 0.225 | E3: Computing the growth rates
A4: Cost of equity rE | E4: Quarterly
A5: 10-year | B5: =B3*(1+F8)/B2+F8 -> 0.2611124558 | C5: =getformula(B5) -> <-- =B3*(1+F8)/B2+F8 | E5: 10-year | F5: =(B52/B12)^(1/(COUNT(B12:B52)-1))-1 -> 0.06237737481 | G5: =getformula(F5) -> <-- =(B52/B12)^(1/(COUNT(B12:B52)-1))-1
A6: 5-year | B6: =B3*(1+F9)/B2+F9 -> 0.1113687139 | C6: =getformula(B6) -> <-- =B3*(1+F9)/B2+F9 | E6: 5-year | F6: =(B52/B33)^(1/(COUNT(B33:B52)-1))-1 -> 0.02528587138 | G6: =getformula(F6) -> <-- =(B52/B33)^(1/(COUNT(B33:B52)-1))-1
E7: Annualized
E8: 10-year | F8: =F5*4 -> 0.2495094993 | G8: =getformula(F8) -> <-- =F5*4
E9: 5-year | F9: =F6*4 -> 0.1011434855 | G9: =getformula(F9) -> <-- =F6*4
A11: Date | B11: Dividend per share
A12: 2003-05-05 | B12: 0.02
A13: 2003-08-05 | B13: 0.02 | C13: =LN(B13/B12) -> 0 | D13: =getformula(C13) -> <-- =LN(B13/B12)
A14: 2003-11-05 | B14: 0.02 | C14: =LN(B14/B13) -> 0
A15: 2004-02-04 | B15: 0.04 | C15: 0.6931471806
A16: 2004-05-05 | B16: 0.04 | C16: 0
A17: 2004-08-04 | B17: 0.04 | C17: 0
A18: 2004-11-03 | B18: 0.04 | C18: 0
A19: 2005-02-03 | B19: 0.08 | C19: 0.6931471806
A20: 2005-05-04 | B20: 0.08 | C20: 0
A21: 2005-08-03 | B21: 0.08 | C21: 0
A22: 2005-11-03 | B22: 0.08 | C22: 0
A23: 2006-02-03 | B23: 0.1 | C23: 0.2231435513
A24: 2006-05-03 | B24: 0.1 | C24: 0
A25: 2006-08-03 | B25: 0.1 | C25: 0
A26: 2006-11-03 | B26: 0.1 | C26: 0
A27: 2007-02-05 | B27: 0.113 | C27: 0.1222176327
A28: 2007-05-03 | B28: 0.113 | C28: 0
A29: 2007-08-03 | B29: 0.113 | C29: 0
A30: 2007-11-05 | B30: 0.113 | C30: 0
A31: 2008-02-05 | B31: 0.128 | C31: 0.1246424452
A32: 2008-05-05 | B32: 0.14 | C32: 0.08961215869
A33: 2008-08-05 | B33: 0.14 | C33: 0
A34: 2008-11-05 | B34: 0.14 | C34: 0
A35: 2009-02-04 | B35: 0.14 | C35: 0
A36: 2009-05-05 | B36: 0.14 | C36: 0
A37: 2009-08-05 | B37: 0.14 | C37: 0
A38: 2009-11-04 | B38: 0.14 | C38: 0
A39: 2010-02-03 | B39: 0.158 | C39: 0.1209526104
A40: 2010-05-05 | B40: 0.158 | C40: 0
A41: 2010-08-04 | B41: 0.158 | C41: 0
A42: 2010-11-03 | B42: 0.158 | C42: 0
A43: 2011-02-03 | B43: 0.181 | C43: 0.1359019982
A44: 2011-05-04 | B44: 0.181 | C44: 0
A45: 2011-08-03 | B45: 0.21 | C45: 0.1486104995
A46: 2011-11-03 | B46: 0.21 | C46: 0
A47: 2012-02-03 | B47: 0.21 | C47: 0
A48: 2012-05-03 | B48: 0.21 | C48: 0
A49: 2012-08-03 | B49: 0.225 | C49: 0.06899287149
A50: 2012-11-05 | B50: 0.225 | C50: 0
A51: 2013-02-05 | B51: 0.225 | C51: 0
A52: 2013-05-03 | B52: 0.225 | C52: 0

Sheet Exercise 14 answer
A1: COMPUTING THE GORDON DIVIDEND MODEL rE FOR INTEL
A2: S0, current stock price | B2: 24.23
A3: Current dividend, Div0 | C3: =getformula(B3) -> <-- | E3: Computing the growth rates
A4: Cost of equity rE | E4: Quarterly
A5: 10-year | C5: =getformula(B5) -> <-- | E5: 10-year | G5: =getformula(F5) -> <--
A6: 5-year | C6: =getformula(B6) -> <-- | E6: 5-year | G6: =getformula(F6) -> <--
E7: Annualized
E8: 10-year | G8: =getformula(F8) -> <--
E9: 5-year | G9: =getformula(F9) -> <--
A11: Date | B11: Dividend per share
A12: 2003-05-05 | B12: 0.02
A13: 2003-08-05 | B13: 0.02
A14: 2003-11-05 | B14: 0.02
A15: 2004-02-04 | B15: 0.04
A16: 2004-05-05 | B16: 0.04
A17: 2004-08-04 | B17: 0.04
A18: 2004-11-03 | B18: 0.04
A19: 2005-02-03 | B19: 0.08
A20: 2005-05-04 | B20: 0.08
A21: 2005-08-03 | B21: 0.08
A22: 2005-11-03 | B22: 0.08
A23: 2006-02-03 | B23: 0.1
A24: 2006-05-03 | B24: 0.1
A25: 2006-08-03 | B25: 0.1
A26: 2006-11-03 | B26: 0.1
A27: 2007-02-05 | B27: 0.113
A28: 2007-05-03 | B28: 0.113
A29: 2007-08-03 | B29: 0.113
A30: 2007-11-05 | B30: 0.113
A31: 2008-02-05 | B31: 0.128
A32: 2008-05-05 | B32: 0.14
A33: 2008-08-05 | B33: 0.14
A34: 2008-11-05 | B34: 0.14
A35: 2009-02-04 | B35: 0.14
A36: 2009-05-05 | B36: 0.14
A37: 2009-08-05 | B37: 0.14
A38: 2009-11-04 | B38: 0.14
A39: 2010-02-03 | B39: 0.158
A40: 2010-05-05 | B40: 0.158
A41: 2010-08-04 | B41: 0.158
A42: 2010-11-03 | B42: 0.158
A43: 2011-02-03 | B43: 0.181
A44: 2011-05-04 | B44: 0.181
A45: 2011-08-03 | B45: 0.21
A46: 2011-11-03 | B46: 0.21
A47: 2012-02-03 | B47: 0.21
A48: 2012-05-03 | B48: 0.21
A49: 2012-08-03 | B49: 0.225
A50: 2012-11-05 | B50: 0.225
A51: 2013-02-05 | B51: 0.225
A52: 2013-05-03 | B52: 0.225

Sheet Sheet1
A2: 100
A3: 105 | B3: =(A3-A2)/A2 -> 0.05 | C3: =LN(A3/A2) -> 0.04879016417
A4: 102 | B4: =(A4-A3)/A3 -> -0.02857142857 | C4: =LN(A4/A3) -> -0.02898753687
A5: 95 | B5: -0.06862745098 | C5: -0.07109592168
A6: 100 | B6: 0.05263157895 | C6: 0.05129329439
A7: 104 | B7: 0.04 | C7: 0.03922071315
A8: 105 | B8: 0.009615384615 | C8: 0.009569451016
A9: 90 | B9: -0.1428571429 | C9: -0.1541506798
A10: 100 | B10: 0.1111111111 | C10: 0.1053605157
B12: =SUM(B3:B10) -> 0.02330205226 | C12: =SUM(C3:C10) -> 0
